bitfinex-derivatives/quotes_SOLF0:USTF0_20241227
["timestamp","ask_amount","ask_price","bid_price","bid_amount"]
[1735327200413,7.95709882,186.51,186.44,7.95709882]
[1735327200716,10.64199882,186.49,186.44,7.95709882]
[1735327200914,7.95709882,186.49,186.42,3.14]
[1735327201218,7.95709882,186.49,186.42,11.09709882]
[1735327201612,10.64199882,186.49,186.43,2.6857]
[1735327201910,7.95709882,186.53,186.46,7.95709882]
[1735327202114,21.73173719,186.55,186.49,2.6849]
[1735327202317,21.73173719,186.55,186.5,3.14]
[1735327202518,7.95709882,186.55,186.5,3.14]
[1735327204111,2.6843,186.53,186.5,3.14]
[1735327204620,2.6842,186.54,186.5,3.14]
[1735327205616,7.95709882,186.55,186.5,3.14]
[1735327205816,2.6839,186.56,186.5,11.09709882]
[1735327206314,2.6839,186.56,186.51,2.6844]
[1735327206519,7.95709882,186.57,186.5,11.09709882]
[1735327207311,10.64079882,186.57,186.52,2.6844]
[1735327209515,1.5851,186.59,186.5,11.09709882]
[1735327209716,7.95709882,186.6,186.52,7.95709882]
[1735327210425,2.6835,186.59,186.54,2.6841]
[1735327210722,2.6835,186.59,186.55,3.14]
[1735327210927,7.95709882,186.58,186.55,3.14]
[1735327212021,11.23047415,186.62,186.55,3.14]
[1735327212221,7.95709882,186.6,186.55,3.14]
[1735327213420,2.6836,186.59,186.55,3.14]
[1735327215028,11.23047415,186.62,186.58,2.6836]
[1735327215227,11.23047415,186.62,186.59,7.95709882]
[1735327215429,13.83581596,186.65,186.6,3.14]
[1735327215623,2.60534181,186.65,186.6,3.14]
[1735327216525,5.28804181,186.65,186.6,3.14]
[1735327216728,2.60534181,186.65,186.6,3.14]
[1735327217124,2.60534181,186.65,186.6,5.8232]
[1735327217431,2.60534181,186.65,186.61,7.95709882]
[1735327217830,2.60534181,186.65,186.61,10.64019882]
[1735327218024,2.6822,186.68,186.63,7.95709882]
[1735327218328,7.95709882,186.69,186.64,2.6827]
[1735327218518,7.95709882,186.71,186.65,11.09709882]
[1735327218722,7.95709882,186.71,186.66,3.14]
[1735327218723,2.682,186.7,186.66,3.14]
[1735327219327,10.63879882,186.71,186.66,3.14]
[1735327219521,7.95709882,186.71,186.66,3.14]
[1735327219720,3.152,186.75,186.66,3.14]
[1735327219721,7.95709882,186.73,186.67,7.95709882]
[1735327220424,10.63859882,186.73,186.67,10.63929882]
[1735327221022,2.6813,186.75,186.69,7.95709882]
[1735327221223,10.63839882,186.75,186.69,7.95709882]
[1735327221427,47.56455216,186.76,186.71,7.95709882]
[1735327221630,47.56455216,186.76,186.72,3.14]
[1735327222331,50.24555216,186.76,186.72,3.14]
[1735327225433,2.6808,186.78,186.72,3.14]
[1735327226033,2.6809,186.77,186.72,3.14]
[1735327227234,10.63779882,186.79,186.73,7.95709882]
[1735327228128,2.6808,186.78,186.73,7.95709882]
[1735327228444,7.95709882,186.77,186.72,3.14]
[1735327228828,2.6814,186.73,186.72,3.14]
[1735327229032,7.95709882,186.77,186.72,3.14]
[1735327229629,2.6813,186.75,186.72,3.14]
[1735327229836,7.95709882,186.77,186.72,3.14]
[1735327230037,7.95709882,186.79,186.73,7.95709882]
[1735327230343,10.63769882,186.79,186.73,7.95709882]
[1735327231538,2.6806,186.79,186.75,7.95709882]
[1735327233042,2.6807,186.78,186.75,7.95709882]
[1735327233844,2.6807,186.78,186.73,7.95709882]
[1735327235742,1.6329,186.85,186.75,7.95709882]
[1735327235943,7.95709882,186.83,186.77,7.95709882]
[1735327236142,7.95709882,186.83,186.78,3.14]
[1735327237444,2.6803,186.81,186.78,3.14]
[1735327238346,9.58999882,186.85,186.79,7.95709882]
[1735327238544,7.95709882,186.85,186.79,7.95709882]
[1735327239449,2.68,186.83,186.79,7.95709882]
[1735327240344,2.6798,186.85,186.81,7.95709882]
[1735327242640,2.6798,186.85,186.8,2.6804]
[1735327242846,2.6798,186.85,186.79,10.63769882]
[1735327243339,7.95709882,186.86,186.73,4.8318]
[1735327243544,7.95709882,186.86,186.78,7.95709882]
[1735327243743,7.95709882,186.84,186.79,3.14]
[1735327243943,2.6801,186.83,186.79,3.14]
[1735327244143,7.95709882,186.86,186.8,7.95709882]
[1735327244549,3.75169221,186.87,186.82,7.95709882]
[1735327245144,2.6796,186.86,186.82,7.95709882]
[1735327246452,2.6798,186.85,186.82,7.95709882]
[1735327246654,11.70879103,186.87,186.79,3.14]
[1735327246955,11.70879103,186.87,186.8,7.95709882]
[1735327247148,2.68,186.84,186.8,7.95709882]
[1735327249854,2.6797,186.86,186.8,10.63739882]
[1735327253658,2.6797,186.86,186.82,7.95709882]
[1735327254057,2.6795,186.87,186.82,7.95709882]
[1735327257854,2.6795,186.87,186.81,2.6803]
[1735327258157,2.6797,186.86,186.82,7.95709882]
[1735327258360,2.6797,186.86,186.81,2.6803]
[1735327258559,2.6797,186.86,186.81,10.63739882]
[1735327258858,2.6798,186.85,186.81,7.95709882]
[1735327259760,7.95709882,186.87,186.8,1.6743]
[1735327259961,2.68,186.83,186.81,7.95709882]
[1735327263862,2.6799,186.84,186.81,7.95709882]
[1735327264761,2.6799,186.84,186.82,3.14]
[1735327269455,7.95709882,186.85,186.74,1.6371]
[1735327269656,7.95709882,186.81,186.75,11.09709882]
[1735327269958,7.95709882,186.81,186.76,3.14]
[1735327270164,2.6808,186.78,186.75,7.95709882]
[1735327270361,7.95709882,186.79,186.76,3.14]
[1735327271165,2.6809,186.77,186.76,3.14]
[1735327275270,12.71123768,186.86,186.76,3.14]
[1735327275562,7.95709882,186.84,186.77,7.95709882]
[1735327276068,2.6803,186.81,186.77,7.95709882]
[1735327277762,2.6801,186.82,186.79,7.95709882]
[1735327278668,7.95709882,186.87,186.79,7.95709882]
[1735327278868,10.6492163,186.89,186.83,7.95709882]
[1735327279071,10.6492163,186.89,186.84,3.14]
[1735327279871,2.6793,186.88,186.84,3.14]
[1735327280072,10.6492163,186.89,186.84,3.14]
[1735327280873,11.12123768,186.9,186.87,7.95709882]
[1735327281073,2.679,186.9,186.87,7.95709882]
[1735327281267,41.48580038,186.93,186.87,7.95709882]
[1735327281473,30.3645627,186.93,186.87,7.95709882]
[1735327281778,2.6793,186.89,186.87,7.95709882]
[1735327285479,2.6793,186.88,186.87,7.95709882]
[1735327286381,7.95709882,186.89,186.82,7.95709882]
[1735327286579,7.95709882,186.87,186.83,3.14]
[1735327286781,7.95709882,186.85,186.83,3.14]
[1735327286978,7.95709882,186.85,186.77,12.80289882]
[1735327287286,7.95709882,186.81,186.78,3.14]
[1735327287486,2.6807,186.79,186.78,3.14]
[1735327293382,7.95709882,186.81,186.73,7.95709882]
[1735327293578,2.681,186.76,186.74,3.14]
[1735327295089,7.95709882,186.81,186.74,3.14]
[1735327296192,2.6808,186.78,186.75,7.95709882]
[1735327299783,2.6802,186.82,186.77,7.95709882]
[1735327299987,7.95709882,186.85,186.79,7.95709882]
[1735327300187,7.95709882,186.85,186.8,3.14]
[1735327300696,2.6801,186.83,186.8,3.14]
[1735327301090,7.95709882,186.87,186.81,7.95709882]
[1735327302396,2.68,186.84,186.81,7.95709882]
[1735327304395,7.95709882,186.88,186.81,7.95709882]
[1735327304587,2.6797,186.85,186.81,7.95709882]
[1735327305094,2.6799,186.84,186.81,7.95709882]
[1735327308402,7.95709882,186.86,186.8,3.14]
[1735327309295,2.6803,186.82,186.81,3.14]
[1735327310495,2.6795,186.87,186.81,3.14]
[1735327310702,7.95709882,186.87,186.81,11.09709882]
[1735327313202,2.68,186.84,186.81,11.09709882]
[1735327314204,7.95709882,186.87,186.81,11.09709882]
[1735327314403,2.68,186.83,186.81,11.09709882]
[1735327318002,7.95709882,186.87,186.81,11.09709882]
[1735327318003,2.6799,186.84,186.81,11.09709882]
[1735327318304,7.95709882,186.87,186.81,11.09709882]
[1735327319407,2.68,186.83,186.81,11.09709882]
[1735327320004,7.95709882,186.87,186.81,11.09709882]
[1735327320204,2.6799,186.84,186.81,11.09709882]
[1735327321203,7.95709882,186.89,186.81,11.09709882]
[1735327321407,11.19651191,186.9,186.81,3.14]
[1735327321606,7.95709882,186.9,186.81,3.14]
[1735327321806,7.95709882,186.9,186.83,7.95709882]
[1735327322511,2.6798,186.85,186.84,3.14]
[1735327327904,7.95709882,186.86,186.84,3.14]
[1735327328112,7.95709882,186.86,186.83,3.14]
[1735327328406,2.6809,186.77,186.75,7.95709882]
[1735327328610,7.95709882,186.81,186.76,3.14]
[1735327329109,2.6809,186.77,186.76,3.14]
[1735327330614,7.95709882,186.83,186.76,3.14]
[1735327330814,7.95709882,186.83,186.77,7.95709882]
[1735327331209,2.6806,186.79,186.77,7.95709882]
[1735327331515,7.95709882,186.83,186.77,7.95709882]
[1735327332513,2.6807,186.78,186.77,7.95709882]
[1735327333322,7.95709882,186.81,186.76,3.14]
[1735327333513,2.6809,186.77,186.76,3.14]
[1735327334121,2.6807,186.78,186.76,3.14]
[1735327334421,2.6807,186.78,186.77,7.95709882]
[1735327335115,7.95709882,186.85,186.77,7.95709882]
[1735327335311,7.95709882,186.85,186.76,3.14]
[1735327336919,7.95709882,186.85,186.79,7.95709882]
[1735327337219,7.95709882,186.85,186.76,3.14]
[1735327337420,7.95709882,186.85,186.79,7.95709882]
[1735327338019,2.6804,186.8,186.79,7.95709882]
[1735327339218,7.95709882,186.85,186.77,7.95709882]
[1735327339419,18.97812492,186.89,186.78,3.14]
[1735327339420,7.95709882,186.83,186.78,3.14]
[1735327340120,2.6806,186.79,186.78,3.14]
[1735327343927,2.6798,186.85,186.78,3.14]
[1735327344128,19.15361073,186.87,186.79,7.95709882]
[1735327344528,7.95709882,186.85,186.79,7.95709882]
[1735327344827,2.6804,186.8,186.79,7.95709882]
[1735327355651,7.95709882,186.87,186.79,7.95709882]
[1735327356850,7.95709882,186.87,186.8,3.14]
[1735327358050,2.6803,186.81,186.73,3.1305]
[1735327358250,7.95709882,186.83,186.76,7.95709882]
[1735327358855,2.6808,186.78,186.76,7.95709882]
[1735327359051,7.95709882,186.81,186.73,3.1305]
[1735327359250,11.81083842,186.88,186.72,3.01774019]
[1735327359251,7.95709882,186.77,186.72,3.01774019]
[1735327359558,2.6813,186.74,186.73,3.14]
[1735327360359,7.95709882,186.77,186.73,3.14]
[1735327361059,2.6813,186.74,186.73,3.14]
[1735327361459,2.6811,186.76,186.73,11.09709882]
[1735327362959,2.6812,186.75,186.73,11.09709882]
[1735327363361,7.95709882,186.81,186.73,11.09709882]
[1735327363564,7.95709882,186.83,186.77,7.95709882]
[1735327363855,7.95709882,186.85,186.79,7.95709882]
[1735327365462,2.6803,186.81,186.79,7.95709882]
[1735327365959,7.95709882,186.85,186.79,7.95709882]
[1735327366260,2.6806,186.79,186.78,3.14]
[1735327367157,2.681,186.76,186.75,7.95709882]
[1735327367460,2.681,186.76,186.75,11.09709882]
[1735327367964,7.95709882,186.79,186.75,3.14]
[1735327368151,7.95709882,186.77,186.76,3.14]
[1735327368863,2.6808,186.77,186.76,3.14]
[1735327369156,7.95709882,186.83,186.76,3.14]
[1735327369364,7.95709882,186.83,186.77,7.95709882]
[1735327370466,2.6807,186.78,186.77,7.95709882]
[1735327371659,2.6807,186.78,186.76,3.14]
[1735327372866,12.40013565,186.86,186.76,3.14]
[1735327373071,2.6805,186.8,186.76,3.14]
[1735327373865,2.6806,186.79,186.76,3.14]
[1735327374466,12.40013565,186.86,186.76,3.14]
[1735327375370,2.6805,186.8,186.76,3.14]
[1735327375570,12.40013565,186.86,186.76,3.14]
[1735327376062,23.60194688,186.86,186.76,3.14]
[1735327376465,2.6806,186.79,186.76,3.14]
[1735327377468,2.6807,186.78,186.76,3.14]
[1735327377974,2.6808,186.77,186.76,3.14]
[1735327379768,12.40013565,186.83,186.76,3.14]
[1735327380070,2.6808,186.77,186.76,3.14]
[1735327380459,12.40013565,186.8,186.71,55.7]
[1735327380665,2.6816,186.72,186.71,55.7]
[1735327380864,2.6816,186.72,186.71,3.14]
[1735327381065,12.40013565,186.77,186.66,7.45773591]
[1735327381261,12.40013565,186.77,186.67,3.14]
[1735327381966,2.6813,186.74,186.67,3.14]
[1735327382268,12.40013565,186.77,186.67,3.14]
[1735327383269,2.6821,186.69,186.67,3.14]
[1735327383664,12.40013565,186.77,186.67,3.14]
[1735327384470,2.6821,186.68,186.67,3.14]
[1735327386072,2.682,186.69,186.67,3.14]
[1735327387475,2.6821,186.68,186.67,3.14]
[1735327388375,2.682,186.69,186.67,3.14]
[1735327389076,12.40013565,186.77,186.67,3.14]
[1735327389077,2.6821,186.68,186.67,3.14]
[1735327389575,12.40013565,186.74,186.64,3.01885455]
[1735327389774,12.40013565,186.71,186.65,3.14]
[1735327389973,12.40013565,186.71,186.59,55.72]
[1735327390276,2.6833,186.6,186.59,55.72]
[1735327390470,2.6833,186.6,186.59,58.86]
[1735327390672,2.6831,186.62,186.59,58.86]
[1735327390871,12.40013565,186.71,186.59,58.86]
[1735327391376,2.6822,186.68,186.59,58.86]
[1735327391577,12.40013565,186.71,186.59,58.86]
[1735327392977,2.6822,186.68,186.59,58.86]
[1735327393180,12.40013565,186.71,186.59,58.86]
[1735327393576,2.683,186.63,186.59,55.72]
[1735327393774,12.40013565,186.71,186.6,3.14]
[1735327395278,4.7902,186.73,186.61,12.40013565]
[1735327395678,1.5903,186.73,186.61,12.40013565]
[1735327396280,2.682,186.7,186.64,12.40013565]
[1735327396476,1.5903,186.73,186.65,3.14]
[1735327397483,2.682,186.69,186.65,3.14]
[1735327398279,2.6822,186.68,186.65,3.14]
[1735327399382,2.6823,186.67,186.65,3.14]
[1735327399583,12.40013565,186.77,186.65,3.14]
[1735327399772,2.6819,186.7,186.67,12.40013565]
[1735327399972,2.6819,186.7,186.68,3.14]
[1735327400178,12.40013565,186.77,186.68,3.14]
[1735327400974,2.682,186.69,186.68,3.14]
[1735327401680,2.6818,186.7,186.68,3.14]
[1735327402883,5.87402374,186.78,186.68,3.14]
[1735327403078,2.6816,186.72,186.68,3.14]
[1735327404392,2.6817,186.71,186.68,3.14]
[1735327404683,12.40013565,186.77,186.69,3.14]
[1735327406287,2.6818,186.7,186.69,3.14]
[1735327409790,7.94258409,186.75,186.69,3.14]
[1735327411491,2.6818,186.7,186.69,3.14]
[1735327412289,2.682,186.69,186.66,9.48098409]
[1735327412489,2.682,186.69,186.67,3.14]
[1735327412698,7.94258409,186.75,186.67,3.14]
[1735327412887,2.6816,186.72,186.67,3.14]
[1735327413089,7.94258409,186.69,186.68,3.14]
[1735327413291,7.94258409,186.69,186.62,7.94258409]
[1735327413485,7.94258409,186.63,186.58,29.83094364]
[1735327413690,7.94258409,186.61,186.59,3.14]
[1735327413893,7.94258409,186.61,186.58,29.83094364]
[1735327414088,10.62598409,186.59,186.58,29.83094364]
[1735327414397,10.62598409,186.59,186.58,32.97094364]
[1735327414794,10.62598409,186.59,186.58,3.14]
[1735327415497,2.6834,186.59,186.58,3.14]
[1735327415701,2.6833,186.6,186.58,3.14]
[1735327415894,7.94258409,186.61,186.58,3.14]
[1735327417400,2.6834,186.59,186.58,3.14]
[1735327421102,12.4286865,186.61,186.42,25.05900773]
[1735327421103,2.6839,186.56,186.42,25.05900773]
[1735327421307,1.6638,186.58,186.44,15.5686865]
[1735327421701,1.6638,186.58,186.47,12.4286865]
[1735327421905,2.6843,186.53,186.47,15.1138865]
[1735327423006,1.6638,186.58,186.47,12.4286865]
[1735327423207,2.6845,186.52,186.47,12.4286865]
[1735327423602,1.6638,186.58,186.47,12.4286865]
[1735327423905,2.6846,186.51,186.47,12.4286865]
[1735327427009,2.6846,186.51,186.48,3.14]
[1735327427206,12.4286865,186.56,186.42,1.6073]
[1735327427404,12.4286865,186.56,186.43,15.5686865]
[1735327427805,1.6638,186.58,186.46,12.4286865]
[1735327429011,12.4286865,186.56,186.44,12.4286865]
[1735327429208,2.6844,186.53,186.44,12.4286865]
[1735327429410,12.4286865,186.56,186.44,12.4286865]
[1735327429903,12.4286865,186.56,186.44,15.1142865]
[1735327430116,12.4286865,186.56,186.45,3.14]
[1735327431113,1.6638,186.58,186.47,12.4286865]
[1735327432117,2.6847,186.51,186.47,12.4286865]
[1735327432418,1.6638,186.58,186.45,3.14]
[1735327432808,2.6841,186.55,186.45,3.14]
[1735327433013,1.6638,186.58,186.45,3.14]
[1735327433913,2.6846,186.51,186.45,5.8253]
[1735327435210,2.6848,186.5,186.45,5.8253]
[1735327436214,2.6848,186.5,186.45,18.2539865]
[1735327436415,2.6849,186.49,186.45,5.8253]
[1735327436607,2.6849,186.49,186.45,18.2539865]
[1735327437013,2.6847,186.51,186.45,18.2539865]
[1735327437204,1.6638,186.58,186.45,15.5686865]
[1735327437814,7.96003081,186.55,186.48,7.96003081]
[1735327438406,2.685,186.49,186.48,7.96003081]
[1735327439317,2.6852,186.47,186.42,4.293]
[1735327439615,7.96003081,186.51,186.43,7.96003081]
[1735327439817,7.96003081,186.49,186.44,3.14]
[1735327440209,7.96003081,186.49,186.45,3.14]
[1735327441119,2.6853,186.46,186.45,3.14]
[1735327442014,7.96003081,186.51,186.45,3.14]
[1735327442219,2.6852,186.47,186.45,11.10003081]
[1735327442720,2.6853,186.46,186.45,11.10003081]
[1735327442921,7.96003081,186.47,186.32,7.45773591]
[1735327443123,7.96003081,186.47,186.4,7.96003081]
[1735327443323,7.96003081,186.47,186.41,3.14]
[1735327443921,2.6856,186.44,186.41,3.14]
[1735327444225,1.6729,186.5,186.41,3.14]
[1735327444226,7.96003081,186.49,186.42,7.96003081]
[1735327444426,7.96003081,186.49,186.44,7.96003081]
[1735327444625,1.6729,186.5,186.44,7.96003081]
[1735327444826,7.96003081,186.51,186.44,7.96003081]
[1735327445026,2.6853,186.47,186.44,7.96003081]
[1735327445525,7.96003081,186.51,186.44,7.96003081]
[1735327448222,2.6854,186.45,186.44,7.96003081]
[1735327450226,2.6849,186.49,186.44,7.96003081]
[1735327450418,7.96003081,186.51,186.44,7.96003081]
[1735327450827,7.96003081,186.51,186.45,3.14]
[1735327451730,1.6729,186.56,186.48,7.96003081]
[1735327452029,7.96003081,186.53,186.47,7.96003081]
[1735327454731,1.5773,186.59,186.45,3.14]
[1735327454732,7.96003081,186.57,186.51,7.96003081]
[1735327454935,7.96003081,186.57,186.52,3.18]
[1735327455131,7.96003081,186.55,186.52,3.18]
[1735327460831,2.6844,186.52,186.43,31.40954364]
[1735327461035,2.6844,186.52,186.47,7.96003081]
[1735327462837,7.96003081,186.55,186.49,7.96003081]
[1735327463030,7.96003081,186.55,186.5,3.18]
[1735327463640,7.96003081,186.55,186.5,5.8647]
[1735327463840,7.96003081,186.55,186.5,3.18]
[1735327464147,10.64403081,186.55,186.5,5.8647]
[1735327470941,2.6839,186.56,186.51,2.6846]
[1735327471140,7.96003081,186.57,186.5,3.18]
[1735327472443,2.684,186.55,186.5,5.8647]
[1735327472941,7.96003081,186.55,186.43,1.5786]
[1735327473144,2.6847,186.5,186.45,2.6854]
[1735327473440,2.6847,186.5,186.46,3.18]
[1735327475746,2.6847,186.5,186.47,3.18]
[1735327476146,2.6847,186.5,186.45,10.64543081]
[1735327476449,2.6847,186.5,186.46,3.18]
[1735327476649,2.6847,186.5,186.45,10.64543081]
[1735327476847,2.6847,186.5,186.47,3.18]
[1735327477444,2.6846,186.51,186.47,3.18]
[1735327477651,12.62158783,186.6,186.49,7.96003081]
[1735327477850,20.58161864,186.6,186.54,7.96003081]
[1735327478147,2.6836,186.58,186.55,3.18]
[1735327478349,22.40746388,186.61,186.56,7.96003081]
[1735327478549,22.40746388,186.61,186.6,7.96003081]
[1735327478749,22.40746388,186.61,186.6,11.14003081]
[1735327479146,30.36749469,186.66,186.6,11.14003081]
[1735327479750,2.683,186.62,186.6,11.14003081]
[1735327480147,22.40746388,186.66,186.6,11.14003081]
[1735327480343,3.2686,186.7,186.63,7.96003081]
[1735327480547,1.5979,186.7,186.65,7.96003081]
[1735327480750,32.02009469,186.72,186.66,3.18]
[1735327480952,2.6818,186.71,186.66,3.18]
[1735327481452,9.61263081,186.72,186.67,7.96003081]
[1735327481751,9.61263081,186.72,186.66,3.18]
[1735327481752,1.6526,186.72,186.66,3.18]
[1735327482355,4.3342,186.72,186.66,3.18]
[1735327482547,1.6526,186.72,186.66,3.18]
[1735327482751,3.2686,186.75,186.66,3.18]
[1735327482953,2.6814,186.74,186.67,2.6823]
[1735327483967,3.2686,186.75,186.66,3.18]
[1735327485452,2.6817,186.71,186.66,3.18]
[1735327485656,3.2686,186.75,186.66,3.18]
[1735327487653,2.6816,186.72,186.66,3.18]
[1735327489356,1.5979,186.75,186.66,3.18]
[1735327489558,2.6814,186.74,186.66,3.18]
[1735327489756,2.69382374,186.78,186.66,3.18]
[1735327489958,2.69382374,186.78,186.67,14.03459848]
[1735327491058,2.6811,186.75,186.68,2.6821]
[1735327492960,2.6811,186.75,186.67,14.03459848]
[1735327493166,2.6811,186.75,186.69,2.682]
[1735327493657,2.69382374,186.78,186.67,14.03459848]
[1735327493859,2.681,186.77,186.7,2.6818]
[1735327494157,2.681,186.77,186.71,3.16]
[1735327494364,2.69382374,186.78,186.71,3.16]
[1735327495562,1.6396,186.81,186.71,3.16]
[1735327495764,1.6396,186.81,186.72,12.41309848]
[1735327495955,2.6806,186.79,186.72,12.41309848]
[1735327496761,1.6396,186.81,186.72,12.41309848]
[1735327498467,2.6806,186.79,186.73,2.6814]
[1735327499061,4.32,186.81,186.74,2.6812]
[1735327499266,1.6396,186.81,186.74,2.6812]
[1735327499471,63.22027287,186.85,186.74,2.6812]
[1735327500071,2.6806,186.79,186.73,2.6814]
[1735327501072,63.22027287,186.85,186.75,2.6811]
[1735327501073,2.6804,186.81,186.75,2.6811]
[1735327501267,2.6804,186.81,186.76,3.16]
[1735327501668,2.6804,186.81,186.76,11.0963958]
[1735327501866,2.6801,186.83,186.78,7.9363958]
[1735327502066,9.5507958,186.87,186.8,7.9363958]
[1735327502267,9.5507958,186.87,186.81,3.16]
[1735327503564,2.6797,186.85,186.81,3.16]
[1735327504970,2.6797,186.85,186.82,3.16]
[1735327505281,2.6799,186.84,186.82,3.16]
[1735327506671,7.9363958,186.85,186.77,4.8778]
[1735327506872,7.9363958,186.79,186.78,3.16]
[1735327507070,7.9363958,186.79,186.72,7.9363958]
[1735327507269,1.5422,186.86,186.66,4.8625]
[1735327507270,2.6813,186.74,186.73,3.16]
[1735327507575,7.9363958,186.75,186.69,7.9363958]
[1735327507767,7.9363958,186.73,186.7,3.16]
[1735327507963,7.9363958,186.73,186.66,3.2932]
[1735327508167,7.9363958,186.71,186.67,3.16]
[1735327508365,7.9363958,186.71,186.68,3.16]
[1735327508672,2.682,186.69,186.68,3.16]
[1735327511469,12.41635878,186.76,186.68,3.16]
[1735327511873,12.41635878,186.76,186.69,3.16]
[1735327513071,2.6818,186.7,186.69,3.16]
[1735327513970,2.6817,186.72,186.69,3.16]
[1735327514167,1.6038,186.75,186.69,3.16]
[1735327515578,2.6818,186.71,186.69,3.16]
[1735327515768,1.6038,186.75,186.69,3.16]
[1735327515973,1.6038,186.75,186.65,55.76]
[1735327516177,1.6038,186.75,186.68,3.14]
[1735327517181,2.6818,186.71,186.68,3.14]
[1735327524679,2.6814,186.73,186.68,3.14]
[1735327524877,12.41635878,186.79,186.68,3.14]
[1735327525280,2.6813,186.75,186.69,2.682]
[1735327525480,12.41635878,186.79,186.69,2.682]
[1735327525680,12.41635878,186.79,186.7,3.14]
[1735327525883,2.6817,186.72,186.7,3.14]
[1735327526690,12.41635878,186.79,186.71,3.14]
[1735327526888,13.98465878,186.79,186.71,3.14]
[1735327528288,2.6809,186.77,186.72,3.14]
[1735327528488,13.98465878,186.79,186.72,3.14]
[1735327528891,2.6814,186.74,186.72,3.14]
[1735327529182,13.98465878,186.79,186.72,3.14]
[1735327529589,2.6809,186.77,186.72,3.14]
[1735327529791,7.94342555,186.74,186.72,3.14]
[1735327531588,2.6814,186.73,186.72,3.14]
[1735327533691,2.6812,186.75,186.72,3.14]
[1735327534189,1.5683,186.79,186.72,3.14]
[1735327534190,7.94342555,186.76,186.72,3.14]
[1735327534893,2.6813,186.74,186.72,3.14]
[1735327537192,2.6812,186.75,186.72,3.14]
[1735327545300,7.94342555,186.76,186.72,3.14]
[1735327545496,2.6813,186.74,186.72,3.14]
[1735327547198,1.5437,186.8,186.72,3.14]
[1735327547400,7.94342555,186.79,186.72,3.14]
[1735327547999,7.94342555,186.79,186.73,7.94342555]
[1735327548197,7.94342555,186.79,186.72,3.14]
[1735327548395,2.681,186.76,186.73,7.94342555]
[1735327548601,10.63716583,186.81,186.73,7.94342555]
[1735327548995,7.94342555,186.79,186.73,7.94342555]
[1735327549199,7.94342555,186.79,186.67,1.6755]
[1735327549399,7.94342555,186.77,186.71,7.94342555]
[1735327549799,2.6815,186.73,186.69,7.94342555]
[1735327551905,7.94342555,186.77,186.71,7.94342555]
[1735327552608,2.6812,186.75,186.71,7.94342555]
[1735327553403,2.6813,186.74,186.71,7.94342555]
[1735327554907,2.6816,186.72,186.69,7.94342555]
[1735327556007,7.94342555,186.77,186.7,3.14]
[1735327557612,2.6815,186.73,186.7,3.14]
[1735327557907,13.74037171,186.81,186.71,3.14]
[1735327558108,7.94342555,186.74,186.71,3.14]
[1735327558710,7.94342555,186.76,186.71,3.14]
[1735327559499,2.6816,186.72,186.71,3.14]
[1735327560401,7.94342555,186.76,186.69,7.94342555]
[1735327560706,2.6813,186.74,186.7,3.14]
[1735327562808,2.6814,186.73,186.7,3.14]
[1735327563605,7.94342555,186.76,186.7,3.14]
[1735327563807,2.6817,186.71,186.7,3.14]
[1735327564321,7.94342555,186.76,186.7,3.14]
[1735327564322,2.6816,186.72,186.7,3.14]
[1735327564504,35.84659598,186.81,186.71,7.94342555]
[1735327564505,7.94342555,186.78,186.71,7.94342555]
[1735327564912,7.94342555,186.74,186.71,3.14]
[1735327565508,7.94342555,186.74,186.67,7.94342555]
[1735327565713,7.94342555,186.74,186.68,3.14]
[1735327565910,7.94342555,186.76,186.69,7.94342555]
[1735327566112,7.94342555,186.78,186.71,7.94342555]
[1735327567411,2.6812,186.75,186.71,7.94342555]
[1735327570816,2.69374028,186.81,186.73,7.94342555]
[1735327571119,23.68772427,186.84,186.74,3.14]
[1735327571120,22.10622427,186.84,186.74,3.14]